bitfinex/quotes_BTCUSD_20250331
["timestamp","ask_amount","ask_price","bid_price","bid_amount"]
[1743392389656,0.01912315,81926.0,81925.0,0.7689406]
[1743392390355,0.256302,81935.0,81929.0,0.244113]
[1743392390546,0.012205,81931.0,81930.0,0.14188]
[1743392390883,0.244107,81931.0,81930.0,0.14188]
[1743392391232,0.25189458,81931.0,81930.0,0.14188]
[1743392393488,0.28322011,81931.0,81930.0,0.14388]
[1743392393718,0.28322011,81931.0,81930.0,0.14488]
[1743392394096,0.28322011,81931.0,81930.0,0.003]
[1743392394330,0.28322011,81931.0,81930.0,0.14488]
[1743392396269,0.02690811,81931.0,81930.0,0.24932585]
[1743392396474,0.00778758,81931.0,81930.0,0.24932585]
[1743392396787,0.24447574,81937.0,81932.0,0.012205]
[1743392396987,0.00783775,81936.0,81932.0,0.256307]
[1743392397620,0.00783775,81936.0,81934.0,0.012204]
[1743392397818,0.00783775,81936.0,81935.0,0.012204]
[1743392398021,0.00783775,81936.0,81935.0,0.27083985]
[1743392398221,0.00038374,81937.0,81936.0,0.02674485]
[1743392399575,0.0195026,81937.0,81936.0,0.02674485]
[1743392402166,0.0195026,81937.0,81936.0,0.02774485]
[1743392403355,0.02738948,81937.0,81936.0,0.02774485]
[1743392404860,0.02738948,81937.0,81936.0,0.05250838]
[1743392407189,0.00827062,81937.0,81936.0,0.05250838]
[1743392409384,0.00827062,81937.0,81936.0,0.13420838]
[1743392409785,0.00827062,81937.0,81936.0,0.18220838]
[1743392410037,0.00038374,81937.0,81936.0,0.18220838]
[1743392411497,0.01950143,81937.0,81936.0,0.81624838]
[1743392411801,0.00038374,81937.0,81936.0,0.81624838]
[1743392412457,0.00038374,81937.0,81936.0,0.93653321]
[1743392414417,0.01950092,81937.0,81936.0,0.93653321]
[1743392418723,0.01950092,81937.0,81936.0,0.81624838]
[1743392420274,0.00038374,81937.0,81936.0,0.81624838]
[1743392420651,0.00038374,81937.0,81936.0,0.93653321]
[1743392423411,0.00038374,81937.0,81936.0,0.81624838]
[1743392423583,0.01950108,81937.0,81936.0,0.81624838]
[1743392423785,0.01950108,81937.0,81936.0,0.76824838]
[1743392426825,0.01950108,81937.0,81936.0,0.82834838]
[1743392430123,0.01950108,81937.0,81936.0,0.81614438]
[1743392431083,0.02743382,81937.0,81936.0,0.81614438]
[1743392431507,0.27152282,81937.0,81936.0,0.81614438]
[1743392431681,0.27541063,81937.0,81936.0,0.81614438]
[1743392432227,0.25629329,81937.0,81936.0,0.81614438]
[1743392435309,0.27541165,81937.0,81936.0,0.81614438]
[1743392435514,0.27541165,81937.0,81936.0,0.65980353]
[1743392435714,0.48098667,81937.0,81936.0,0.63504]
[1743392435872,0.3753399,81937.0,81936.0,0.63504]
[1743392436257,0.33681565,81937.0,81936.0,0.63504]
[1743392437183,0.31769729,81937.0,81936.0,0.63504]
[1743392438176,0.31769729,81937.0,81936.0,0.63404]
[1743392438532,0.31869729,81937.0,81936.0,0.63404]
[1743392439162,0.31769729,81937.0,81936.0,0.63404]
[1743392439370,0.31969729,81937.0,81936.0,0.63404]
[1743392439683,0.31869729,81937.0,81936.0,0.63404]
[1743392440079,0.33881692,81937.0,81936.0,0.63404]
[1743392440496,0.28961692,81937.0,81936.0,0.63404]
[1743392447205,0.27049729,81937.0,81936.0,0.63404]
[1743392451605,0.28961701,81937.0,81936.0,0.63404]
[1743392454758,0.256309,81932.0,81931.0,0.14176]
[1743392455141,0.26806003,81932.0,81931.0,0.14176]
[1743392456026,0.26806003,81932.0,81924.0,0.0769]
[1743392456027,0.256331,81925.0,81924.0,0.0769]
[1743392456239,0.012206,81924.0,81923.0,0.63408]
[1743392456552,0.02394568,81924.0,81923.0,0.63408]
[1743392456727,0.04306803,81924.0,81923.0,0.77584]
[1743392457047,0.02432122,81924.0,81923.0,0.77584]
[1743392457881,0.02432122,81924.0,81923.0,0.63408]
[1743392459434,0.02532122,81924.0,81923.0,0.63408]
[1743392459811,0.02632122,81924.0,81923.0,0.63408]
[1743392460438,0.04544464,81924.0,81923.0,0.63408]
[1743392463532,0.04544464,81924.0,81916.0,0.0001682]
[1743392463533,0.556356,81917.0,81916.0,0.0001682]
[1743392463940,0.56800465,81917.0,81916.0,0.0001682]
[1743392464174,0.67607411,81917.0,81916.0,0.0001682]
[1743392464370,0.440007,81916.0,81915.0,4e-07]
[1743392464583,0.556403,81902.0,81901.0,0.14176]
[1743392464795,0.012212,81881.0,81878.0,0.63416]
[1743392465030,0.012213,81879.0,81878.0,0.63416]
[1743392465231,0.012213,81879.0,81878.0,0.77592]
[1743392465443,0.02380735,81879.0,81878.0,0.77592]
[1743392466040,0.02385444,81879.0,81878.0,0.77592]
[1743392466643,0.03649116,81879.0,81878.0,0.77592]
[1743392467242,0.14341877,81879.0,81878.0,0.77592]
[1743392467469,0.012213,81877.0,81876.0,0.0001686]
[1743392467718,0.312213,81877.0,81876.0,0.0001686]
[1743392467949,0.01159435,81877.0,81876.0,0.0001686]
[1743392468175,0.02380735,81877.0,81876.0,0.0001686]
[1743392468646,0.02380735,81877.0,81876.0,0.0041686]
[1743392469033,0.02380735,81877.0,81876.0,0.0071686]
[1743392469233,0.02380735,81877.0,81876.0,0.0001686]
[1743392471286,0.03072919,81877.0,81876.0,0.0001686]
[1743392471519,0.03072919,81877.0,81876.0,0.0795686]
[1743392472461,0.04294219,81877.0,81876.0,0.0001686]
[1743392472670,0.03072919,81877.0,81876.0,0.0001686]
[1743392472873,0.04294219,81877.0,81876.0,0.0001686]
[1743392474118,0.04294219,81877.0,81876.0,0.1419686]
[1743392474249,0.11545512,81877.0,81876.0,0.0011686]
[1743392475281,0.04294219,81877.0,81876.0,0.0011686]
[1743392476445,0.04394219,81877.0,81876.0,0.0011686]
[1743392477577,0.04394219,81877.0,81876.0,0.0001686]
[1743392478262,0.02480735,81877.0,81876.0,0.0001686]
[1743392479868,0.02480735,81877.0,81876.0,6e-07]
[1743392480561,0.02514395,81877.0,81876.0,6e-07]
[1743392480762,0.04427894,81877.0,81876.0,6e-07]
[1743392487212,0.02514395,81877.0,81876.0,6e-07]
[1743392490174,0.04427913,81877.0,81876.0,6e-07]
[1743392492246,0.03206613,81877.0,81876.0,6e-07]
[1743392492440,0.04427913,81877.0,81876.0,6e-07]
[1743392494290,0.04327913,81877.0,81876.0,6e-07]
[1743392497366,0.02414395,81877.0,81876.0,6e-07]
[1743392500983,0.0432781,81877.0,81876.0,6e-07]
[1743392502030,0.12333062,81877.0,81876.0,6e-07]
[1743392502257,0.0432781,81877.0,81876.0,6e-07]
[1743392502476,0.3432781,81877.0,81876.0,6e-07]
[1743392505770,0.3442781,81877.0,81876.0,6e-07]
[1743392507601,0.32514395,81877.0,81876.0,6e-07]
[1743392510721,0.34427893,81877.0,81876.0,6e-07]
[1743392517582,0.32514395,81877.0,81876.0,6e-07]
[1743392520290,0.43338305,81877.0,81876.0,6e-07]
[1743392520491,0.32514395,81877.0,81876.0,6e-07]
[1743392520733,0.34427897,81877.0,81876.0,6e-07]
[1743392522260,0.04427897,81877.0,81876.0,0.0755006]
[1743392522463,0.34427897,81877.0,81876.0,0.0755006]
[1743392523686,0.34427897,81877.0,81876.0,0.1206006]
[1743392528718,0.03206597,81877.0,81876.0,0.1206006]
[1743392528977,0.04427897,81877.0,81876.0,0.1206006]
[1743392529234,0.02514395,81877.0,81876.0,0.1206006]
[1743392530261,0.02514395,81877.0,81876.0,0.0755006]
[1743392532425,0.0442778,81877.0,81876.0,0.0755006]
[1743392532626,0.0442778,81877.0,81876.0,0.2173006]
[1743392535469,0.0442778,81877.0,81876.0,0.22801865]
[1743392535669,0.0320648,81877.0,81876.0,0.2663006]
[1743392535880,0.2885458,81877.0,81876.0,0.2663006]
[1743392536333,0.26941195,81877.0,81876.0,0.2663006]
[1743392538203,0.56941195,81877.0,81876.0,6e-07]
[1743392538416,0.68969678,81877.0,81876.0,6e-07]
[1743392538617,0.56941195,81877.0,81876.0,6e-07]
[1743392539272,0.56941195,81877.0,81876.0,0.0776006]
[1743392539500,0.58854615,81877.0,81876.0,0.0776006]
[1743392539706,0.03206515,81877.0,81876.0,0.0776006]
[1743392539833,0.28854615,81877.0,81876.0,0.0776006]
[1743392541732,0.28754615,81877.0,81876.0,0.1417606]
[1743392546317,0.28754615,81877.0,81876.0,0.2193606]
[1743392546318,0.03106515,81877.0,81876.0,0.2193606]
[1743392546834,0.27533315,81877.0,81876.0,0.2193606]
[1743392547036,0.28754615,81877.0,81876.0,0.2193606]
[1743392547239,0.26841195,81877.0,81876.0,0.2193606]
[1743392550344,0.01193095,81877.0,81876.0,0.2193606]
[1743392550540,0.03106444,81877.0,81876.0,0.4758446]
[1743392551357,0.03106444,81877.0,81876.0,0.53578545]
[1743392551519,0.01947009,81877.0,81876.0,0.53578545]
[1743392552637,0.01947009,81877.0,81876.0,0.53678545]
[1743392553451,0.01947009,81877.0,81876.0,0.53878545]
[1743392553873,0.02947756,81877.0,81876.0,0.28230145]
[1743392554071,0.01947009,81877.0,81876.0,0.28230145]
[1743392554271,0.02947756,81877.0,81876.0,0.28230145]
[1743392557519,0.01034407,81877.0,81876.0,0.28230145]
[1743392558097,0.01034407,81877.0,81876.0,0.29451445]
[1743392560666,0.029476,81877.0,81876.0,0.29451445]
[1743392561106,0.029476,81877.0,81876.0,0.3052325]
[1743392561310,0.029476,81877.0,81876.0,0.29451445]
[1743392561954,0.029476,81877.0,81876.0,0.92899445]
[1743392562362,0.01946853,81877.0,81876.0,0.92899445]
[1743392563404,0.01946853,81877.0,81876.0,0.78723445]
[1743392563511,0.02950372,81877.0,81876.0,0.9396725]
[1743392563718,0.01946853,81877.0,81876.0,0.92895445]
[1743392567579,0.0003366,81877.0,81876.0,0.92895445]
[1743392569267,0.0003366,81877.0,81876.0,0.77502145]
[1743392569467,0.2568176,81877.0,81876.0,0.6374806]
[1743392569672,0.5568176,81877.0,81876.0,0.7792006]
[1743392569875,0.5668621,81877.0,81876.0,0.7792006]
[1743392570456,0.58599529,81877.0,81876.0,0.7792006]
[1743392570971,0.58599529,81877.0,81876.0,0.7772006]
[1743392571172,0.58599529,81877.0,81876.0,0.7782006]
[1743392571372,0.58599529,81877.0,81876.0,0.7772006]
[1743392576411,0.58599529,81877.0,81876.0,0.1427206]
[1743392576821,0.32951429,81877.0,81876.0,0.1427206]
[1743392577068,0.32951429,81877.0,81876.0,0.2239206]
[1743392577269,0.32951429,81877.0,81876.0,0.4804046]
[1743392577270,0.02951429,81877.0,81876.0,0.4804046]
[1743392577446,0.0103811,81877.0,81876.0,0.5266046]
[1743392577667,0.0003366,81877.0,81876.0,0.5266046]
[1743392577860,0.0003366,81877.0,81876.0,0.54114545]
[1743392578377,0.01034563,81877.0,81876.0,0.2701206]
[1743392578561,0.01034563,81877.0,81876.0,0.2239206]
[1743392579238,0.26682663,81877.0,81876.0,0.2239206]
[1743392579467,0.26682663,81877.0,81876.0,0.1427206]
[1743392580619,0.28595935,81877.0,81876.0,0.1427206]
[1743392583677,0.28595935,81877.0,81876.0,0.1417206]
[1743392583919,0.28595935,81877.0,81876.0,6e-07]
[1743392583920,0.64387099,81877.0,81876.0,6e-07]
[1743392584328,0.69217099,81877.0,81876.0,6e-07]
[1743392585309,0.69417099,81877.0,81876.0,6e-07]
[1743392585714,0.63625935,81877.0,81876.0,6e-07]
[1743392586518,0.63825935,81877.0,81876.0,6e-07]
[1743392587042,0.58995935,81877.0,81876.0,6e-07]
[1743392588868,0.28995935,81877.0,81876.0,6e-07]
[1743392589458,0.03147835,81877.0,81876.0,6e-07]
[1743392589662,0.04369135,81877.0,81876.0,0.0755006]
[1743392589884,0.04469135,81877.0,81876.0,0.0755006]
[1743392590079,0.03247835,81877.0,81876.0,0.0755006]
[1743392590409,0.04369135,81877.0,81876.0,0.0755006]
[1743392590745,0.03147835,81877.0,81876.0,0.0755006]
[1743392591165,0.02947835,81877.0,81876.0,0.0755006]
[1743392591589,0.03047835,81877.0,81876.0,0.0755006]
[1743392591991,0.03047835,81877.0,81876.0,0.0765006]
[1743392592370,0.04269135,81877.0,81876.0,0.0765006]
[1743392592948,0.04269135,81877.0,81876.0,0.0775006]
[1743392594465,0.03047835,81877.0,81876.0,0.0775006]
[1743392594705,0.03047835,81877.0,81876.0,0.10425445]
[1743392595339,0.02046932,81877.0,81876.0,0.10425445]
[1743392595869,0.01946932,81877.0,81876.0,0.10225445]
[1743392596295,0.01946932,81877.0,81876.0,0.10425445]
[1743392596845,0.01946932,81877.0,81876.0,0.10525445]
[1743392597043,0.0003366,81877.0,81876.0,0.10525445]
[1743392598101,0.0003366,81877.0,81876.0,0.24693445]
[1743392598660,0.01027202,81877.0,81876.0,0.24693445]
[1743392598873,0.0003366,81877.0,81876.0,0.24693445]
[1743392599349,0.0003366,81877.0,81876.0,0.23472145]
[1743392599819,0.01027202,81877.0,81876.0,0.23472145]
[1743392600036,0.0003366,81877.0,81876.0,0.23472145]
[1743392600250,0.01027202,81877.0,81876.0,0.24693445]
[1743392600489,0.02940428,81877.0,81876.0,0.24693445]
[1743392600912,0.01946886,81877.0,81876.0,0.23472145]
[1743392601422,0.02940428,81877.0,81876.0,0.24693445]
[1743392601672,0.01946886,81877.0,81876.0,0.24693445]
[1743392603084,0.01946886,81877.0,81876.0,0.29383445]
[1743392604574,0.01946886,81877.0,81876.0,0.29183445]
[1743392604826,0.01946886,81877.0,81876.0,0.29483445]
[1743392605288,0.01946886,81877.0,81876.0,0.92827445]
[1743392605637,0.01946886,81877.0,81876.0,0.93027445]
[1743392605848,0.26373686,81877.0,81876.0,0.7618406]
[1743392606047,0.28600845,81877.0,81876.0,0.7811206]
[1743392606576,0.26687619,81877.0,81876.0,0.7811206]
[1743392607541,0.27916285,81877.0,81876.0,0.7811206]
[1743392608044,0.27916285,81877.0,81876.0,0.7761206]
[1743392608386,0.27916285,81877.0,81876.0,0.7771206]
[1743392610775,0.29829591,81877.0,81876.0,0.7771206]
[1743392611489,0.04181491,81877.0,81876.0,0.8603206]
[1743392614179,0.05402791,81877.0,81876.0,0.8603206]
[1743392615752,0.04181491,81877.0,81876.0,0.8603206]
[1743392616153,0.02952825,81877.0,81876.0,0.88707445]
[1743392616561,0.01946966,81877.0,81876.0,0.88707445]
[1743392617395,0.0003366,81877.0,81876.0,0.88707445]
[1743392619841,0.0003366,81877.0,81876.0,0.8603206]
[1743392620576,0.01946864,81877.0,81876.0,0.8603206]
[1743392621130,0.04170385,81877.0,81876.0,0.8603206]
[1743392621851,0.02949085,81877.0,81876.0,0.8603206]
[1743392626539,0.02949085,81877.0,81876.0,0.7186406]
[1743392626737,0.04170385,81877.0,81876.0,0.7770806]
[1743392627460,0.02257181,81877.0,81876.0,0.7770806]
[1743392630899,0.04170444,81877.0,81876.0,0.7770806]
[1743392631847,0.02949144,81877.0,81876.0,0.7770806]
[1743392632090,0.02949144,81877.0,81876.0,0.7892936]
[1743392632338,0.02949144,81877.0,81876.0,0.80383445]
[1743392632574,0.02949144,81877.0,81876.0,0.88103445]
[1743392632748,0.02949144,81877.0,81876.0,1.05081928]
[1743392632749,0.01946923,81877.0,81876.0,1.05081928]
[1743392633569,0.01946923,81877.0,81876.0,1.04981928]
[1743392633970,0.01946923,81877.0,81876.0,1.05381928]
[1743392634605,0.01946923,81877.0,81876.0,1.05681928]
[1743392636230,0.01221,81899.0,81890.0,0.01454085]
[1743392636521,0.256419,81897.0,81891.0,0.14164]
[1743392636840,0.256426,81895.0,81891.0,0.14164]
[1743392637025,0.01221,81895.0,81891.0,0.14164]
[1743392637521,0.01004273,81894.0,81891.0,0.14164]
[1743392639360,0.01004273,81894.0,81891.0,0.398075]
[1743392639581,0.01004273,81894.0,81891.0,0.153851]
[1743392639770,0.02917243,81894.0,81891.0,0.14164]
[1743392641818,0.02950883,81894.0,81891.0,0.14164]
[1743392642031,0.244221,81893.0,81891.0,0.14164]
[1743392642401,0.01007923,81892.0,81891.0,0.14164]
[1743392643575,0.0316761,81894.0,81891.0,0.14164]
[1743392643776,0.01007923,81892.0,81891.0,0.14164]
[1743392643981,0.2758961,81894.0,81891.0,0.14264]
[1743392644203,0.01007923,81892.0,81891.0,0.14264]
[1743392644397,0.012211,81893.0,81891.0,0.14164]
[1743392644742,0.01007923,81892.0,81891.0,0.14164]
[1743392644877,0.25430323,81892.0,81891.0,0.14164]
[1743392645537,0.25430323,81892.0,81891.0,0.14264]
[1743392646458,0.01007923,81892.0,81891.0,0.14264]
[1743392646659,0.25430323,81892.0,81891.0,0.14264]
[1743392646872,0.25430323,81892.0,81891.0,0.14164]
[1743392647410,0.26651423,81892.0,81891.0,0.14164]
[1743392647816,0.26651423,81892.0,81891.0,0.14264]
[1743392650589,0.28564422,81892.0,81891.0,0.14264]
[1743392650997,0.02920922,81892.0,81891.0,0.14264]
[1743392653538,0.02920922,81892.0,81891.0,0.2266099]
[1743392653740,0.02920922,81892.0,81891.0,0.54311885]
[1743392653937,0.01912999,81892.0,81891.0,0.54311885]
[1743392654164,0.01912999,81892.0,81891.0,0.54328705]
[1743392654700,0.01912999,81892.0,81891.0,0.28684905]
[1743392654914,0.01912999,81892.0,81891.0,0.25256005]
[1743392655477,0.01912999,81892.0,81891.0,0.49678705]
[1743392657351,0.0003364,81894.0,81893.0,0.256432]
[1743392658582,0.0003364,81894.0,81893.0,0.27097285]
[1743392658783,0.0003364,81894.0,81893.0,0.52075768]
[1743392658986,0.0003364,81894.0,81893.0,0.94005758]
[1743392660151,0.01946271,81894.0,81893.0,0.94005758]
[1743392660355,0.01946271,81894.0,81893.0,0.94605758]
[1743392661202,0.01946271,81894.0,81893.0,0.94805758]
[1743392661433,0.01946271,81894.0,81893.0,0.94605758]
[1743392662002,0.01946271,81894.0,81893.0,0.95105758]
[1743392662353,0.01946271,81894.0,81893.0,0.83077275]
[1743392663431,0.00874466,81894.0,81893.0,0.95105758]
[1743392666989,0.0003364,81896.0,81895.0,0.256425]
[1743392667191,0.0003364,81896.0,81895.0,0.27096585]
[1743392668330,0.0003364,81896.0,81895.0,0.34856585]
[1743392668497,0.0003364,81896.0,81895.0,0.35256585]
[1743392668705,0.0003364,81896.0,81895.0,0.47285068]
[1743392669350,0.0003364,81896.0,81895.0,0.47785068]
[1743392670108,0.0003364,81896.0,81895.0,0.35756585]
[1743392671719,0.01946341,81896.0,81895.0,0.35756585]
[1743392673664,0.01946341,81896.0,81895.0,0.99180585]
[1743392674030,0.01946341,81896.0,81895.0,0.73538085]
[1743392674236,0.03167341,81896.0,81895.0,0.78476]
[1743392675245,0.03167341,81896.0,81895.0,0.77576]
[1743392675551,0.03167341,81896.0,81895.0,0.78076]
[1743392675762,0.03167341,81896.0,81895.0,0.63924]
[1743392675992,0.03167341,81896.0,81895.0,0.005]
[1743392676187,0.04056682,81896.0,81895.0,0.005]
[1743392676383,0.39501786,81896.0,81895.0,0.14652]
[1743392676528,0.34056682,81896.0,81895.0,0.14652]
[1743392677110,0.34056682,81896.0,81895.0,0.14352]
[1743392677111,0.32143981,81896.0,81895.0,0.14352]
[1743392677499,0.32143981,81896.0,81895.0,0.14152]
[1743392677643,0.32243981,81896.0,81895.0,0.14152]
[1743392678555,0.32243981,81896.0,81895.0,0.14252]
[1743392678733,0.32243981,81896.0,81895.0,0.001]
[1743392678954,0.32243981,81896.0,81894.0,0.0001682]
[1743392678955,0.556425,81895.0,81894.0,0.0001682]
[1743392679183,0.56529038,81895.0,81894.0,0.0001682]
[1743392680082,0.58542163,81895.0,81894.0,0.0001682]
[1743392681503,0.58642163,81895.0,81894.0,0.0001682]
[1743392683328,0.60857693,81895.0,81894.0,0.0001682]
[1743392683534,0.58642163,81895.0,81894.0,0.0001682]
[1743392687442,0.56729038,81895.0,81894.0,0.0001682]
[1743392690400,0.58642162,81895.0,81894.0,0.0001682]
[1743392691963,0.58675802,81895.0,81894.0,0.0001682]
[1743392694262,0.69674765,81895.0,81894.0,0.0001682]
[1743392695219,0.58675802,81895.0,81894.0,0.0001682]
[1743392695983,0.556435,81892.0,81891.0,3.511e-05]
[1743392696424,0.56520414,81892.0,81891.0,3.511e-05]
[1743392699769,0.69510414,81892.0,81891.0,3.511e-05]
[1743392700434,0.73186926,81892.0,81891.0,3.511e-05]
[1743392700637,0.85215409,81892.0,81891.0,3.511e-05]
[1743392700865,0.81538897,81892.0,81891.0,3.511e-05]
[1743392701071,0.69910414,81892.0,81891.0,3.511e-05]
[1743392701498,0.71623861,81892.0,81891.0,3.511e-05]
[1743392701699,0.71823861,81892.0,81891.0,3.511e-05]
[1743392702204,0.28633861,81892.0,81891.0,3.511e-05]
[1743392702966,0.29133861,81892.0,81891.0,3.511e-05]
[1743392703394,0.28633861,81892.0,81891.0,3.511e-05]
[1743392703817,0.28733861,81892.0,81891.0,3.511e-05]
[1743392703993,0.29033861,81892.0,81891.0,3.511e-05]
[1743392706361,0.59033861,81892.0,81891.0,3.511e-05]
[1743392706770,0.70505544,81892.0,81891.0,3.511e-05]
[1743392707310,0.78745544,81892.0,81891.0,3.511e-05]
[1743392707516,0.85258609,81892.0,81891.0,3.511e-05]
[1743392708881,0.84958609,81892.0,81891.0,3.511e-05]
[1743392709231,0.84658609,81892.0,81891.0,3.511e-05]
[1743392709433,0.88206531,81892.0,81891.0,3.511e-05]
[1743392709653,0.85158609,81892.0,81891.0,1.1e-07]
[1743392709977,0.88706491,81892.0,81891.0,1.1e-07]
[1743392710165,0.90619999,81892.0,81891.0,1.1e-07]
[1743392710398,0.91119999,81892.0,81891.0,1.1e-07]
[1743392711138,0.75971804,81892.0,81891.0,1.1e-07]
[1743392711370,0.59433922,81892.0,81891.0,1.1e-07]
[1743392711956,0.29433922,81892.0,81891.0,1.1e-07]
[1743392712562,0.05011522,81892.0,81891.0,1.1e-07]
[1743392712777,0.29433922,81892.0,81891.0,1.1e-07]
[1743392712990,0.012211,81891.0,81890.0,0.0476]
[1743392713219,0.02091508,81891.0,81890.0,0.0476]
[1743392713856,0.02086815,81891.0,81890.0,0.0476]
[1743392714480,0.02386815,81891.0,81890.0,0.0476]
[1743392714729,0.02386815,81891.0,81890.0,0.0477682]
[1743392715293,0.13549799,81891.0,81890.0,0.0001682]
[1743392715501,0.43549799,81891.0,81890.0,0.0001682]
[1743392715897,0.43849799,81891.0,81890.0,0.0001682]
[1743392716481,0.43549799,81891.0,81890.0,0.0001682]
[1743392716865,0.32686815,81891.0,81890.0,0.0001682]
[1743392717071,0.32386815,81891.0,81890.0,0.0001682]
[1743392717474,0.32686815,81891.0,81890.0,0.0001682]
[1743392720495,0.34600054,81891.0,81890.0,0.0001682]
[1743392727490,0.32686815,81891.0,81890.0,0.0001682]
[1743392727890,0.39739215,81891.0,81890.0,0.0001682]
[1743392728523,0.39772855,81891.0,81890.0,0.0001682]
[1743392730249,0.41686087,81891.0,81890.0,0.0001682]
[1743392733201,0.34633687,81891.0,81890.0,0.0001682]
[1743392733933,0.34633687,81891.0,81890.0,0.0763682]
[1743392736622,0.04633687,81891.0,81890.0,0.0763682]
[1743392736867,0.32720455,81891.0,81890.0,0.0763682]
[1743392737308,0.32720455,81891.0,81890.0,0.0001682]
[1743392737513,0.42013215,81891.0,81890.0,0.0001682]
[1743392738238,0.32720455,81891.0,81890.0,0.0001682]
[1743392739706,0.34633655,81891.0,81890.0,0.0001682]
[1743392742884,0.34633655,81891.0,81890.0,0.0785682]
[1743392743112,0.34633655,81891.0,81890.0,0.0001682]
[1743392747541,0.32720455,81891.0,81890.0,0.0001682]
[1743392750238,0.34633677,81891.0,81890.0,0.0001682]
[1743392752120,0.45799997,81891.0,81890.0,0.0001682]
[1743392752354,0.34633677,81891.0,81890.0,0.0001682]
[1743392754814,0.38310189,81891.0,81890.0,2e-07]
[1743392755017,0.34633677,81891.0,81890.0,2e-07]
[1743392755220,0.50218204,81891.0,81890.0,2e-07]
[1743392755849,0.49918204,81891.0,81890.0,2e-07]
[1743392756240,0.50418204,81891.0,81890.0,2e-07]
[1743392756666,0.50118204,81891.0,81890.0,2e-07]
[1743392756910,0.50618204,81891.0,81890.0,2e-07]
[1743392757116,0.48704982,81891.0,81890.0,2e-07]
[1743392758158,0.556481,81877.0,81876.0,0.00014216]
[1743392758584,0.56517418,81877.0,81876.0,0.00014216]
[1743392758887,0.60071677,81877.0,81876.0,0.00014216]
[1743392759093,0.60968369,81877.0,81876.0,0.00014216]
[1743392759299,0.5751411,81877.0,81876.0,1.6e-07]
[1743392759560,0.5565,81871.0,81870.0,3.6e-07]
[1743392759769,0.56516654,81871.0,81870.0,4.745e-05]
[1743392760097,0.58430307,81871.0,81870.0,4.745e-05]
[1743392760313,0.58430307,81871.0,81869.0,8.5e-07]
[1743392760314,0.312214,81870.0,81869.0,8.5e-07]
[1743392760520,0.34779698,81870.0,81869.0,8.5e-07]
[1743392760722,0.52570391,81870.0,81869.0,8.5e-07]
[1743392761297,0.556525,81863.0,81861.0,0.004]
[1743392761934,0.56517799,81863.0,81861.0,0.004]
[1743392763741,0.56617799,81863.0,81861.0,0.004]
[1743392764374,0.56717799,81863.0,81861.0,0.004]
[1743392764686,0.67758757,81863.0,81861.0,0.004]
[1743392766320,0.312215,81862.0,81861.0,0.004]
[1743392766909,0.32086799,81862.0,81861.0,0.004]
[1743392767096,0.3400075,81862.0,81861.0,0.004]
[1743392767292,0.44023042,81862.0,81861.0,0.004]
[1743392767542,0.42109091,81862.0,81861.0,0.004]
[1743392767689,0.42609091,81862.0,81861.0,0.004]
[1743392767894,0.43009091,81862.0,81861.0,0.004]
[1743392771146,0.02986799,81862.0,81861.0,0.004]
[1743392771394,0.32986799,81862.0,81861.0,0.0857]
[1743392771619,0.34900773,81862.0,81861.0,0.0857]
[1743392772062,0.34900773,81862.0,81861.0,0.004]
[1743392772665,0.34500773,81862.0,81861.0,0.004]
[1743392772875,0.4308132,81862.0,81861.0,0.004]
[1743392773087,0.4338132,81862.0,81861.0,0.004]
[1743392773304,0.34800773,81862.0,81861.0,0.004]
[1743392773521,0.03079273,81862.0,81861.0,0.389631]
[1743392773730,0.03435474,81862.0,81861.0,0.1331]
[1743392773941,0.34690318,81862.0,81861.0,0.1331]
[1743392774141,0.03468818,81862.0,81861.0,0.1331]
[1743392774348,0.02313974,81862.0,81861.0,0.16229894]
[1743392774591,0.01913974,81862.0,81861.0,0.16229894]
[1743392774792,0.01913974,81862.0,81861.0,0.15985585]
[1743392774994,0.02213974,81862.0,81861.0,0.15985585]
[1743392775282,0.02213974,81862.0,81861.0,0.16002415]
[1743392775499,0.01913974,81862.0,81861.0,0.16002415]
[1743392775671,0.02113974,81862.0,81861.0,0.16002415]
[1743392776089,0.01913974,81862.0,81861.0,0.16002415]
[1743392776299,0.01913974,81862.0,81861.0,0.2747083]
[1743392776582,0.0277488,81862.0,81861.0,0.2869233]
[1743392776786,0.01913974,81862.0,81861.0,0.2869233]
[1743392777171,0.012214,81868.0,81862.0,0.0832]
[1743392777374,0.256512,81867.0,81862.0,0.0832]
[1743392778773,0.012215,81866.0,81862.0,0.0832]
[1743392778975,0.012215,81864.0,81862.0,0.0832]
[1743392779175,0.556525,81863.0,81862.0,0.0832]
[1743392779403,0.312215,81862.0,81861.0,0.0041683]
[1743392780120,0.331353,81862.0,81861.0,0.0041683]
[1743392780732,0.033353,81862.0,81861.0,0.0041683]
[1743392781357,0.031353,81862.0,81861.0,0.0041683]
[1743392781938,0.032353,81862.0,81861.0,0.0041683]
[1743392782170,0.033353,81862.0,81861.0,0.0041683]
[1743392782709,0.1204356,81862.0,81861.0,0.0041683]
[1743392783114,0.033353,81862.0,81861.0,0.0041683]
[1743392787493,0.02286608,81862.0,81861.0,0.0041683]
[1743392788335,0.02286608,81862.0,81861.0,0.0873683]
[1743392788543,0.01065108,81862.0,81861.0,0.3905993]
[1743392788742,0.01065108,81862.0,81861.0,0.40514015]
[1743392788948,0.002,81862.0,81861.0,0.40514015]
[1743392789148,0.0003366,81869.0,81864.0,0.25652]
[1743392789345,0.0003366,81869.0,81866.0,0.10655585]
[1743392789552,0.00862173,81868.0,81867.0,0.71448]
[1743392789766,0.244295,81868.0,81867.0,0.71448]
[1743392789966,0.0003366,81869.0,81867.0,0.71448]
[1743392790166,0.01913497,81868.0,81867.0,0.71448]
[1743392790372,0.0277567,81868.0,81867.0,0.71448]
[1743392791452,0.0287567,81868.0,81867.0,0.71448]
[1743392792071,0.0409707,81868.0,81867.0,0.71448]
[1743392792563,0.013214,81868.0,81867.0,0.71448]
[1743392792787,0.00866269,81868.0,81867.0,0.71448]
[1743392793000,0.02779771,81868.0,81867.0,0.71448]
[1743392793455,0.04001171,81868.0,81867.0,0.71448]
[1743392793693,0.04001171,81868.0,81867.0,0.778]
[1743392793903,0.04001171,81868.0,81861.0,0.0041683]
[1743392793904,0.42218959,81868.0,81861.0,0.0041683]
[1743392794107,0.556528,81862.0,81861.0,0.0041683]
[1743392794311,0.25656,81852.0,81851.0,0.1426883]
[1743392794518,0.556572,81848.0,81847.0,0.6346]
[1743392794721,0.556572,81848.0,81847.0,0.77816]
[1743392795120,0.5832662,81848.0,81847.0,0.77816]
[1743392795327,0.59580586,81848.0,81847.0,0.77816]
[1743392795932,0.5832662,81848.0,81847.0,0.77816]
[1743392796570,0.2832662,81848.0,81847.0,0.77816]
[1743392796797,0.0266942,81848.0,81847.0,0.77816]
[1743392797017,0.0266942,81848.0,81847.0,1.034735]
[1743392797228,0.00755452,81848.0,81847.0,0.77816]